Workbook

Sheet Internal budget
A1: Project Budget Worksheet - Iowa State University of Science and Technology | M1: Eff. 7/1/2016
A2: Loaded Budget for Industry Proposals | M2: Updated 7/14/2016
A3: Program Sponsor | D3: . | G3: FOR INTERNAL USE ONLY | M3: GS # ______
A4: Title | D4: .
A5: PI | D5: . | G5: To use this form, enter budget numbers into "Internal Budget" and the fringe rates and F&A rate will calculated into each line item of the "External Budget" which should be sent as PDF to Sponsor.
A6: Period of Performance | D6: .
A7: Deadline | D7: .
H9: Year 1 | I9: Year 2 | J9: Year 3 | K9: Year 4 | L9: Year 5 | M9: Total
D11: Salary | E11: Cal. | F11: Acad. | G11: Summer
A12: A | C12: Key Personnel | D12: Monthly | E12: Months | F12: Months | G12: Months | H12: =SUM(H13:H21) -> 0 | I12: =SUM(I13:I21) -> 0 | J12: =SUM(J13:J21) -> 0 | K12: =SUM(K13:K21) -> 0 | L12: =SUM(L13:L21) -> 0 | M12: =SUM(H12:L12) -> 0
B13: 1 | C13: PI 1 | D13: 0 | E13: 0 | F13: 0 | G13: 0 | H13: =D13*(E13+F13+G13) -> 0 | I13: =H13*1.03 -> 0 | J13: 0 | K13: 0 | L13: =K13*1.03 -> 0 | M13: 0
B14: 2 | C14: PI 2 | D14: 0 | E14: 0 | F14: 0 | G14: 0 | H14: =D14*(E14+F14+G14) -> 0 | I14: 0 | J14: 0 | K14: 0 | L14: 0 | M14: 0
B15: 3 | C15: PI 3 | D15: 0 | E15: 0 | F15: 0 | G15: 0 | H15: =D15*(E15+F15+G15) -> 0 | I15: =H15*1.03 -> 0 | J15: 0 | K15: 0 | L15: 0 | M15: 0
B16: 4 | C16: PI 4 | D16: 0 | E16: 0 | F16: 0 | G16: 0 | H16: 0 | I16: 0 | J16: 0 | K16: 0 | L16: 0 | M16: 0
B17: 5 | C17: PI 5 | D17: 0 | E17: 0 | F17: 0 | G17: 0 | H17: 0 | I17: 0 | J17: 0 | K17: 0 | L17: 0 | M17: 0
B18: 6 | C18: PI 6 | D18: 0 | E18: 0 | F18: 0 | G18: 0 | H18: 0 | I18: 0 | J18: 0 | K18: 0 | L18: 0 | M18: 0
B19: 7 | C19: PI 7 | D19: 0 | E19: 0 | F19: 0 | G19: 0 | H19: 0 | I19: 0 | J19: 0 | K19: 0 | L19: 0 | M19: 0
B20: 8 | C20: PI 8 | D20: 0 | E20: 0 | F20: 0 | G20: 0 | H20: 0 | I20: 0 | J20: 0 | K20: 0 | L20: 0 | M20: 0
B21: 9 | C21: PI 9 | D21: 0 | E21: 0 | F21: 0 | G21: 0 | H21: 0 | I21: 0 | J21: 0 | K21: 0 | L21: 0 | M21: 0
E22: Cal. | G22: Number of
A23: B | C23: Other Personnel | D23: Monthly | E23: Months | G23: persons | H23: =SUM(H24:H29) -> 0 | I23: =SUM(I24:I29) -> 0 | J23: =SUM(J24:J29) -> 0 | K23: =SUM(K24:K29) -> 0 | L23: =SUM(L24:L29) -> 0 | M23: =SUM(H23:L23) -> 0
B24: 1 | C24: Post Doc | D24: 0 | E24: 0 | G24: 1 | H24: =D24*(E24)*G24 -> 0 | I24: =+H24*1.03 -> 0 | J24: 0 | K24: 0 | L24: =+K24*1.03 -> 0 | M24: 0
B25: 2 | C25: Post Doc | D25: 0 | E25: 0 | G25: 1 | H25: =D25*(E25)*G25 -> 0 | I25: 0 | J25: 0 | K25: 0 | L25: 0 | M25: 0
B26: 3 | C26: Research Asst-Halftime | D26: 0 | E26: 0 | G26: 1 | H26: =D26*(E26)*G26 -> 0 | I26: 0 | J26: 0 | K26: 0 | L26: 0 | M26: 0
B27: 4 | C27: Research Asst-Halftime | D27: 0 | E27: 0 | G27: 1 | H27: =+D27*E27*G27 -> 0 | I27: 0 | J27: 0 | K27: 0 | L27: 0 | M27: 0
B28: 5 | C28: Hourly Undergraduate student | D28: 0 | E28: 0 | G28: 1 | H28: =D28*(E28)*G28 -> 0 | I28: 0 | J28: 0 | K28: 0 | L28: 0 | M28: 0
B29: 6 | C29: Professional & Scientific | D29: 0 | E29: 0 | G29: 1 | H29: =D29*(E29)*G29 -> 0 | I29: 0 | J29: 0 | K29: 0 | L29: 0 | M29: 0
C31: Subtotal: Salaries and Wages | H31: =+H12+H23 -> 0 | I31: =+I12+I23 -> 0 | J31: =+J12+J23 -> 0 | K31: =+K12+K23 -> 0 | L31: =+L12+L23 -> 0 | M31: =M12+M23 -> 0
A33: C | C33: Fringe Benefits | D33: Rate | H33: =SUM(H34:H48) -> 0 | I33: =SUM(I34:I48) -> 0 | J33: =SUM(J34:J48) -> 0 | K33: =SUM(K34:K48) -> 0 | L33: =SUM(L34:L48) -> 0 | M33: =SUM(H33:L33) -> 0
C34: =+C13 -> PI 1 | D34: 0.275 | H34: =$D$34*H13 -> 0 | I34: =$D$34*I13 -> 0 | J34: =$D$34*J13 -> 0 | K34: =$D$34*K13 -> 0 | L34: =$D$34*L13 -> 0 | M34: 0
C35: =+C14 -> PI 2 | D35: 0.275 | H35: =$D$35*H14 -> 0 | I35: =$D$35*I14 -> 0 | J35: =$D$35*J14 -> 0 | K35: =$D$35*K14 -> 0 | L35: =$D$35*L14 -> 0 | M35: 0
C36: =+C15 -> PI 3 | D36: 0.275 | H36: =$D$36*H15 -> 0 | I36: =$D$36*I15 -> 0 | J36: =$D$36*J15 -> 0 | K36: =$D$36*K15 -> 0 | L36: =$D$36*L15 -> 0 | M36: 0
C37: PI 4 | D37: 0.275 | H37: =$D$37*H16 -> 0 | I37: =$D$37*I21 -> 0 | J37: =$D$37*J21 -> 0 | K37: =$D$37*K21 -> 0 | L37: =$D$37*L21 -> 0 | M37: 0
C38: PI 5 | D38: 0.275 | H38: =$D$38*H17 -> 0 | I38: =$D$37*I17 -> 0 | J38: =$D$37*J17 -> 0 | K38: =$D$37*K17 -> 0 | L38: =$D$37*L17 -> 0 | M38: 0
C39: PI 6 | D39: 0.275 | H39: =$D$39*H18 -> 0 | I39: =$D$39*I18 -> 0 | J39: =$D$39*J18 -> 0 | K39: =$D$39*K18 -> 0 | L39: =$D$39*L18 -> 0 | M39: 0
C40: PI 7 | D40: 0.275 | H40: =$D$40*H19 -> 0 | I40: =$D$40*I19 -> 0 | J40: =$D$40*J19 -> 0 | K40: =$D$40*K19 -> 0 | L40: =$D$40*L19 -> 0 | M40: 0
C41: PI 8 | D41: 0.275 | H41: =$D$41*H20 -> 0 | I41: =$D$41*I20 -> 0 | J41: =$D$41*J20 -> 0 | K41: =$D$41*K20 -> 0 | L41: =$D$41*L20 -> 0 | M41: 0
C42: PI 9 | D42: 0.275 | H42: =$D$42*H21 -> 0 | I42: =$D$42*I21 -> 0 | J42: =$D$42*J21 -> 0 | K42: =$D$42*K21 -> 0 | L42: =$D$42*L21 -> 0 | M42: 0
C43: =+C24 -> Post Doc | D43: 0.329 | H43: =$D$43*H24 -> 0 | I43: =$D$43*I24 -> 0 | J43: =$D$43*J24 -> 0 | K43: =$D$43*K24 -> 0 | L43: =$D$43*L24 -> 0 | M43: 0
C44: Post Doc | D44: 0.329 | H44: =$D$44*H25 -> 0 | I44: =$D$44*I25 -> 0 | J44: =$D$44*J25 -> 0 | K44: =$D$44*K25 -> 0 | L44: =$D$44*L25 -> 0 | M44: 0
C45: Research Asst-Halftime | D45: 0.098 | H45: =$D$45*H26 -> 0 | I45: =$D$45*I26 -> 0 | J45: =$D$45*J26 -> 0 | K45: =$D$45*K26 -> 0 | L45: =$D$45*L26 -> 0 | M45: 0
C46: Research Asst-Halftime | D46: 0.098 | H46: =$D$46*H27 -> 0 | I46: =$D$46*I27 -> 0 | J46: =$D$46*J27 -> 0 | K46: =$D$46*K27 -> 0 | L46: =$D$46*L27 -> 0 | M46: 0
C47: Hourly Undergraduate student | D47: 0.006 | H47: =$D$47*H28 -> 0 | I47: =$D$47*I28 -> 0 | J47: =$D$47*J28 -> 0 | K47: =$D$47*K28 -> 0 | L47: =$D$47*L28 -> 0 | M47: 0
C48: Professional & Scientific | D48: 0.345 | H48: =$D$48*H29 -> 0 | I48: =$D$48*I29 -> 0 | J48: =$D$48*J29 -> 0 | K48: =$D$48*K29 -> 0 | L48: =$D$48*L29 -> 0 | M48: 0
C50: Subtotal: Salaries, Wages, and Benefits | H50: =H31+H33 -> 0 | I50: =I31+I33 -> 0 | J50: =J31+J33 -> 0 | K50: =K31+K33 -> 0 | L50: =L31+L33 -> 0 | M50: =SUM(H50:L50) -> 0
A52: D | C52: Equipment (List Item and $ amount for each item > $5k) | H52: =H53+H54 -> 0 | I52: =I53+I54 -> 0 | J52: 0 | K52: 0 | L52: 0 | M52: =SUM(H52:L52) -> 0
C53: 1 | H53: 0 | I53: 0 | J53: 0 | K53: 0 | L53: 0 | M53: =SUM(H53:L53) -> 0
C54: 2
A56: E | C56: Travel | H56: =SUM(H57:H58) -> 0 | I56: =SUM(I57:I58) -> 0 | J56: =SUM(J57:J58) -> 0 | K56: =SUM(K57:K58) -> 0 | L56: =SUM(L57:L58) -> 0 | M56: =SUM(H56:L56) -> 0
C57: 1. Domestic Travel | H57: 0 | I57: 0 | J57: 0 | K57: 0 | L57: 0 | M57: =SUM(H57:L57) -> 0
C58: 2. Foreign Travel | H58: 0 | I58: 0 | J58: 0 | K58: 0 | L58: 0 | M58: =SUM(H58:L58) -> 0
A60: G | C60: Other Direct Costs | H60: =SUM(H61:H74) -> 0 | I60: =SUM(I61:I74) -> 0 | J60: =SUM(J61:J74) -> 0 | K60: =SUM(K61:K74) -> 0 | L60: =SUM(L61:L74) -> 0 | M60: =SUM(H60:L60) -> 0
B61: 1 | C61: Materials and Supplies | H61: 0 | I61: 0 | J61: 0 | K61: 0 | L61: 0 | M61: 0
B62: 2 | C62: Publication cost | H62: 0 | I62: 0 | J62: 0 | K62: 0 | L62: 0 | M62: 0
B63: 3 | C63: Computing support | H63: 0 | I63: 0 | J63: 0 | K63: 0 | L63: 0 | M63: 0
B64: 4 | C64: Instrumentation facility | H64: 0 | I64: 0 | J64: 0 | K64: 0 | L64: 0 | M64: 0
B65: 5 | C65: Subcontractor1 - Subject to IDC (first $25,000) | E65: See notes below | H65: 0 | I65: 0 | J65: 0 | K65: 0 | L65: 0 | M65: 0
C66: NOT subject to IDC (Amount over $25,000) | H66: 0 | I66: 0 | J66: 0 | K66: 0 | L66: 0 | M66: 0
B67: 5 | C67: Subcontractor2 - Subject to IDC (first $25,000) | E67: See notes below | H67: 0 | I67: 0 | J67: 0 | K67: 0 | L67: 0 | M67: 0
C68: NOT subject to IDC (Amount over $25,000) | H68: 0 | I68: 0 | J68: 0 | K68: 0 | L68: 0 | M68: 0
B69: 7 | C69: Tuition - Non-Engineering | D69: (Click on "Tuition" sheet) | H69: =Tuition!K6 -> 0 | I69: =Tuition!M6 -> 0 | J69: =Tuition!O6 -> 0 | K69: =Tuition!Q6 -> 0 | L69: =Tuition!S6 -> 0 | M69: 0
B70: 8 | C70: Tuition - Engineering | D70: (Click on "Tuition" sheet) | H70: =Tuition!K26 -> 0 | I70: =Tuition!M26 -> 0 | J70: =Tuition!O26 -> 0 | K70: =Tuition!Q26 -> 0 | L70: =Tuition!S26 -> 0 | M70: 0
B71: 8 | C71: Tuition-Business & STB | D71: (Click on "Tuition" sheet) | H71: =Tuition!K46 -> 0 | I71: =Tuition!M46 -> 0 | J71: =Tuition!O46 -> 0 | K71: =Tuition!Q46 -> 0 | L71: =Tuition!S46 -> 0 | M71: 0
B72: 9 | C72: other | H72: 0 | I72: 0 | J72: 0 | K72: 0 | L72: 0 | M72: =SUM(H72:L72) -> 0
B73: 10 | C73: Other | H73: 0 | I73: 0 | J73: 0 | K73: 0 | L73: 0 | M73: 0
B74: 11 | C74: Other | H74: 0 | I74: 0 | J74: 0 | K74: 0 | L74: 0 | M74: 0
C76: Subtotal: Total Direct Costs (TDC) | H76: =H50+H52+H56+H60 -> 0 | I76: =I50+I52+I56+I60 -> 0 | J76: =J50+J52+J56+J60 -> 0 | K76: =K50+K52+K56+K60 -> 0 | L76: =L50+L52+L56+L60 -> 0 | M76: =ROUND(SUM(H76:L76),0) -> 0
C78: Subtotal: Modified Total Direct Costs | H78: =(H76-H52-H66-H68-H69-H70) -> 0 | I78: =(I76-I52-I66-I68-I69-I70) -> 0 | J78: =(J76-J52-J66-J68-J69-J70) -> 0 | K78: =(K76-K52-K66-K68-K69-K70) -> 0 | L78: =(L76-L52-L66-L68-L69-L70) -> 0 | M78: =SUM(H78:L78) -> 0
C79: [ MTDC = TDC - Tuition - Equipment - Participant Support Cost ]
A81: H | C81: Indirect Costs | D81: Rate | H81: =SUM(H82:H82) -> 0 | I81: =SUM(I82:I82) -> 0 | J81: =SUM(J82:J82) -> 0 | K81: =SUM(K82:K82) -> 0 | L81: =SUM(L82:L82) -> 0 | M81: =ROUND(SUM(H81:L81),0) -> 0
C82: IDC on MTDC | D82: 0.5 | H82: =+H78*$D$82 -> 0 | I82: =+I78*$D$82 -> 0 | J82: =+J78*$D$82 -> 0 | K82: =+K78*$D$82 -> 0 | L82: =+L78*$D$82 -> 0
D83: [ IDC = MTDC * Indirect Rate ]
A85: I | C85: Total Project Costs | H85: =ROUND(H76+H81,0) -> 0 | I85: =ROUND(I76+I81,0) -> 0 | J85: =ROUND(J76+J81,0) -> 0 | K85: =ROUND(K76+K81,0) -> 0 | L85: =ROUND(L76+L81,0) -> 0 | M85: =SUM(H85:L85) -> 0
C86: [ Total = TDC + IDC ]
C91: NOTES:
C92: This budget is not to be distributed outside of the university.
C93: In order to submit budget to sponsor, print External Budget page either physically or to a PDF.
C99: Benefits:
C100: A&B | D100: 0.315
C101: C | D101: 0.13
C102: D | D102: 0.33
C103: P | D103: 0.378
C104: E | D104: 0.5
C105: XH (Student hourly) | D105: 0.046
C106: XH (Non-Student hourly) | D106: 0.12
C108: Post Doc Salary Range:
C109: $43K- $80K
C110: http://www.grad-college.iastate.edu/post_doc/policies.php
C113: Tuition: Drop-down boxes for academic terms and appointment time (1/4-time, 1/2-time) have been disabled - you'll need to type the correct term and
C114: appointment time for each academic year (i.e. Summer 2011, Fall 2011, Spring 2012, etc.) to display the correct tuition amount for the corresponding term and
C115: appointment time.

Sheet External budget
A1: ='Internal budget'!A1 -> Project Budget Worksheet - Iowa State University of Science and Technology | M1: ='Internal budget'!M3 -> GS # ______
A2: Budget for Industry Proposals
A3: ='Internal budget'!A3 -> Program Sponsor | D3: ='Internal budget'!D3 -> .
A4: ='Internal budget'!A4 -> Title | D4: ='Internal budget'!D4 -> .
A5: ='Internal budget'!A5 -> PI | D5: ='Internal budget'!D5 -> .
A6: ='Internal budget'!A6 -> Period of Performance | D6: ='Internal budget'!D6 -> .
A7: ='Internal budget'!A7 -> Deadline | D7: ='Internal budget'!D7 -> .
H9: Year 1 | I9: Year 2 | J9: Year 3 | K9: Year 4 | L9: Year 5 | M9: Total
D11: Salary | E11: Cal. | F11: Acad. | G11: Summer
A12: A | C12: Key Personnel | D12: Monthly | E12: Months | F12: Months | G12: Months | H12: =SUM(H13:H21) -> 0 | I12: =SUM(I13:I21) -> 0 | J12: =SUM(J13:J21) -> 0 | K12: =SUM(K13:K21) -> 0 | L12: =SUM(L13:L21) -> 0 | M12: =SUM(H12:L12) -> 0
B13: 1 | C13: ='Internal budget'!C13 -> PI 1 | D13: =(1+'Internal budget'!$D$82)*('Internal budget'!D13*(1+'Internal budget'!D34)) -> 0 | E13: ='Internal budget'!E13 -> 0 | F13: ='Internal budget'!F13 -> 0 | G13: ='Internal budget'!G13 -> 0 | H13: =D13*(E13+F13+G13) -> 0 | I13: =H13*1.03 -> 0 | J13: 0 | K13: 0 | L13: 0 | M13: 0
B14: 2 | C14: ='Internal budget'!C14 -> PI 2 | D14: =(1+'Internal budget'!$D$82)*('Internal budget'!D14*(1+'Internal budget'!D35)) -> 0 | E14: ='Internal budget'!E14 -> 0 | F14: ='Internal budget'!F14 -> 0 | G14: ='Internal budget'!G14 -> 0 | H14: =D14*(E14+F14+G14) -> 0 | I14: 0 | J14: 0 | K14: 0 | L14: 0 | M14: 0
B15: 3 | C15: ='Internal budget'!C15 -> PI 3 | D15: =(1+'Internal budget'!$D$82)*('Internal budget'!D15*(1+'Internal budget'!D36)) -> 0 | E15: ='Internal budget'!E15 -> 0 | F15: ='Internal budget'!F15 -> 0 | G15: ='Internal budget'!G15 -> 0 | H15: 0 | I15: 0 | J15: 0 | K15: 0 | L15: 0 | M15: 0
B16: 4 | C16: ='Internal budget'!C16 -> PI 4 | D16: =(1+'Internal budget'!$D$82)*('Internal budget'!D16*(1+'Internal budget'!D37)) -> 0 | E16: ='Internal budget'!E16 -> 0 | F16: ='Internal budget'!F16 -> 0 | G16: ='Internal budget'!G16 -> 0 | H16: 0 | I16: 0 | J16: 0 | K16: 0 | L16: 0 | M16: 0
B17: 5 | C17: ='Internal budget'!C17 -> PI 5 | D17: =(1+'Internal budget'!$D$82)*('Internal budget'!D17*(1+'Internal budget'!D38)) -> 0 | E17: ='Internal budget'!E17 -> 0 | F17: ='Internal budget'!F17 -> 0 | G17: ='Internal budget'!G17 -> 0 | H17: 0 | I17: 0 | J17: 0 | K17: 0 | L17: 0 | M17: 0
B18: 6 | C18: ='Internal budget'!C18 -> PI 6 | D18: =(1+'Internal budget'!$D$82)*('Internal budget'!D18*(1+'Internal budget'!D39)) -> 0 | E18: ='Internal budget'!E18 -> 0 | F18: ='Internal budget'!F18 -> 0 | G18: ='Internal budget'!G18 -> 0 | H18: 0 | I18: 0 | J18: 0 | K18: 0 | L18: 0 | M18: 0
B19: 7 | C19: ='Internal budget'!C19 -> PI 7 | D19: =(1+'Internal budget'!$D$82)*('Internal budget'!D19*(1+'Internal budget'!D40)) -> 0 | E19: ='Internal budget'!E19 -> 0 | F19: ='Internal budget'!F19 -> 0 | G19: ='Internal budget'!G19 -> 0 | H19: 0 | I19: 0 | J19: 0 | K19: 0 | L19: 0 | M19: 0
B20: 8 | C20: ='Internal budget'!C20 -> PI 8 | D20: =(1+'Internal budget'!$D$82)*('Internal budget'!D20*(1+'Internal budget'!D41)) -> 0 | E20: ='Internal budget'!E20 -> 0 | F20: ='Internal budget'!F20 -> 0 | G20: ='Internal budget'!G20 -> 0 | H20: 0 | I20: 0 | J20: 0 | K20: 0 | L20: 0 | M20: 0
B21: 9 | C21: ='Internal budget'!C21 -> PI 9 | D21: =(1+'Internal budget'!$D$82)*('Internal budget'!D21*(1+'Internal budget'!D42)) -> 0 | E21: ='Internal budget'!E21 -> 0 | F21: ='Internal budget'!F21 -> 0 | G21: ='Internal budget'!G21 -> 0 | H21: 0 | I21: 0 | J21: 0 | K21: 0 | L21: 0 | M21: 0
E23: Cal. | G23: Number of
A24: B | C24: Other Personnel | D24: Monthly | E24: Months | G24: persons | H24: =SUM(H25:H30) -> 0 | I24: =SUM(I25:I30) -> 0 | J24: =SUM(J25:J30) -> 0 | K24: =SUM(K25:K30) -> 0 | L24: =SUM(L25:L30) -> 0 | M24: =SUM(H24:L24) -> 0
B25: 1 | C25: Post Doc | D25: =(1+'Internal budget'!$D$82)*('Internal budget'!D24*(1+'Internal budget'!D43)) -> 0 | E25: ='Internal budget'!E24 -> 0 | G25: ='Internal budget'!G24 -> 1 | H25: =D25*(E25)*G25 -> 0 | I25: =+H25*1.03 -> 0 | J25: 0 | K25: 0 | L25: 0 | M25: 0
B26: 2 | C26: Post Doc | D26: =(1+'Internal budget'!$D$82)*('Internal budget'!D25*(1+'Internal budget'!D44)) -> 0 | E26: ='Internal budget'!E25 -> 0 | G26: ='Internal budget'!G25 -> 1 | H26: =D26*(E26)*G26 -> 0 | I26: 0 | J26: 0 | K26: 0 | L26: 0 | M26: 0
B27: 3 | C27: Research Asst-Halftime | D27: =(1+'Internal budget'!$D$82)*('Internal budget'!D26*(1+'Internal budget'!D45)) -> 0 | E27: ='Internal budget'!E26 -> 0 | G27: ='Internal budget'!G26 -> 1 | H27: =D27*(E27)*G27 -> 0 | I27: 0 | J27: 0 | K27: 0 | L27: 0 | M27: 0
B28: 4 | C28: Research Asst-Halftime | D28: =(1+'Internal budget'!$D$82)*('Internal budget'!D27*(1+'Internal budget'!D46)) -> 0 | E28: ='Internal budget'!E27 -> 0 | G28: ='Internal budget'!G27 -> 1 | H28: =+D28*E28*G28 -> 0 | I28: 0 | J28: 0 | K28: 0 | L28: 0 | M28: 0
B29: 5 | C29: Hourly Undergraduate student | D29: =(1+'Internal budget'!$D$82)*('Internal budget'!D28*(1+'Internal budget'!D47)) -> 0 | E29: ='Internal budget'!E28 -> 0 | G29: ='Internal budget'!G28 -> 1 | H29: =D29*(E29)*G29 -> 0 | I29: 0 | J29: 0 | K29: 0 | L29: 0 | M29: 0
B30: 6 | C30: ='Internal budget'!C48 -> Professional & Scientific | D30: =(1+'Internal budget'!$D$82)*('Internal budget'!D29*(1+'Internal budget'!D48)) -> 0 | E30: ='Internal budget'!E29 -> 0 | G30: ='Internal budget'!G29 -> 1 | H30: =D30*(E30)*G30 -> 0 | I30: 0 | J30: 0 | K30: 0 | L30: 0 | M30: 0
C33: Subtotal: Personnel | H33: =H12+H24 -> 0 | I33: =I12+I24 -> 0 | J33: 0 | K33: 0 | L33: 0 | M33: =SUM(H33:L33) -> 0
A35: D | C35: Equipment (List Item and $ amount for each item > $5k) | H35: =H36+H37 -> 0 | I35: =I36+I37 -> 0 | J35: =J36+J37 -> 0 | K35: =K36+K37 -> 0 | L35: =L36+L37 -> 0 | M35: =SUM(H35:L35) -> 0
C36: ='Internal budget'!C53 -> 1 | H36: =('Internal budget'!H53) -> 0 | I36: =('Internal budget'!I53) -> 0 | J36: =('Internal budget'!J53) -> 0 | K36: =('Internal budget'!K53) -> 0 | L36: =('Internal budget'!L53) -> 0 | M36: =SUM(H36:L36) -> 0
C37: ='Internal budget'!C54 -> 2 | H37: =('Internal budget'!H54) -> 0 | I37: =('Internal budget'!I54) -> 0 | J37: =('Internal budget'!J54) -> 0 | K37: =('Internal budget'!K54) -> 0 | L37: =('Internal budget'!L54) -> 0 | M37: =SUM(H37:L37) -> 0
A39: E | C39: Travel | H39: =SUM(H40:H41) -> 0 | I39: =SUM(I40:I41) -> 0 | J39: =SUM(J40:J41) -> 0 | K39: =SUM(K40:K41) -> 0 | L39: =SUM(L40:L41) -> 0 | M39: =SUM(H39:L39) -> 0
C40: ='Internal budget'!C57 -> 1. Domestic Travel | H40: ='Internal budget'!H57*(1+'Internal budget'!$D$82) -> 0 | I40: ='Internal budget'!I57*(1+'Internal budget'!$D$82) -> 0 | J40: ='Internal budget'!J57*(1+'Internal budget'!$D$82) -> 0 | K40: ='Internal budget'!K57*(1+'Internal budget'!$D$82) -> 0 | L40: ='Internal budget'!L57*(1+'Internal budget'!$D$82) -> 0 | M40: =SUM(H40:L40) -> 0
C41: ='Internal budget'!C58 -> 2. Foreign Travel | H41: ='Internal budget'!H58*(1+'Internal budget'!$D$82) -> 0 | I41: ='Internal budget'!I58*(1+'Internal budget'!$D$82) -> 0 | J41: ='Internal budget'!J58*(1+'Internal budget'!$D$82) -> 0 | K41: ='Internal budget'!K58*(1+'Internal budget'!$D$82) -> 0 | L41: ='Internal budget'!L58*(1+'Internal budget'!$D$82) -> 0 | M41: =SUM(H41:L41) -> 0
A43: G | C43: Other Direct Costs | H43: =SUM(H44:H55) -> 0 | I43: =SUM(I44:I55) -> 0 | J43: =SUM(J44:J55) -> 0 | K43: =SUM(K44:K55) -> 0 | L43: =SUM(L44:L55) -> 0 | M43: =SUM(H43:L43) -> 0
B44: 1 | C44: Materials and Supplies | H44: ='Internal budget'!H61*(1+'Internal budget'!$D$82) -> 0 | I44: ='Internal budget'!I61*(1+'Internal budget'!$D$82) -> 0 | J44: ='Internal budget'!J61*(1+'Internal budget'!$D$82) -> 0 | K44: ='Internal budget'!K61*(1+'Internal budget'!$D$82) -> 0 | L44: ='Internal budget'!L61*(1+'Internal budget'!$D$82) -> 0 | M44: 0
B45: 2 | C45: Publication cost | H45: ='Internal budget'!H62*(1+'Internal budget'!$D$82) -> 0 | I45: ='Internal budget'!I62*(1+'Internal budget'!$D$82) -> 0 | J45: ='Internal budget'!J62*(1+'Internal budget'!$D$82) -> 0 | K45: ='Internal budget'!K62*(1+'Internal budget'!$D$82) -> 0 | L45: ='Internal budget'!L62*(1+'Internal budget'!$D$82) -> 0 | M45: 0
B46: 3 | C46: Computing support | H46: ='Internal budget'!H63*(1+'Internal budget'!$D$82) -> 0 | I46: ='Internal budget'!I63*(1+'Internal budget'!$D$82) -> 0 | J46: ='Internal budget'!J63*(1+'Internal budget'!$D$82) -> 0 | K46: ='Internal budget'!K63*(1+'Internal budget'!$D$82) -> 0 | L46: ='Internal budget'!L63*(1+'Internal budget'!$D$82) -> 0 | M46: 0
B47: 4 | C47: Instrumentation facility | H47: ='Internal budget'!H64*(1+'Internal budget'!$D$82) -> 0 | I47: ='Internal budget'!I64*(1+'Internal budget'!$D$82) -> 0 | J47: ='Internal budget'!J64*(1+'Internal budget'!$D$82) -> 0 | K47: ='Internal budget'!K64*(1+'Internal budget'!$D$82) -> 0 | L47: ='Internal budget'!L64*(1+'Internal budget'!$D$82) -> 0 | M47: 0
B48: 5 | C48: Subcontractor1 | H48: =('Internal budget'!H65*(1+'Internal budget'!$D$82))+'Internal budget'!H66 -> 0 | I48: =('Internal budget'!I65*(1+'Internal budget'!$D$82))+'Internal budget'!I66 -> 0 | J48: =('Internal budget'!J65*(1+'Internal budget'!$D$82))+'Internal budget'!J66 -> 0 | K48: =('Internal budget'!K65*(1+'Internal budget'!$D$82))+'Internal budget'!K66 -> 0 | L48: =('Internal budget'!L65*(1+'Internal budget'!$D$82))+'Internal budget'!L66 -> 0 | M48: 0
B49: 6 | C49: Subcontractor2 | H49: =('Internal budget'!H67*(1+'Internal budget'!$D$82))+'Internal budget'!H68 -> 0 | I49: =('Internal budget'!I67*(1+'Internal budget'!$D$82))+'Internal budget'!I68 -> 0 | J49: =('Internal budget'!J67*(1+'Internal budget'!$D$82))+'Internal budget'!J68 -> 0 | K49: =('Internal budget'!K67*(1+'Internal budget'!$D$82))+'Internal budget'!K68 -> 0 | L49: =('Internal budget'!L67*(1+'Internal budget'!$D$82))+'Internal budget'!L68 -> 0 | M49: 0
B50: 7 | C50: Tuition - Non-Engineering | H50: ='Internal budget'!H69 -> 0 | I50: ='Internal budget'!I69 -> 0 | J50: ='Internal budget'!J69 -> 0 | K50: ='Internal budget'!K69 -> 0 | L50: ='Internal budget'!L69 -> 0 | M50: 0
B51: 8 | C51: Tuition - Engineering | H51: ='Internal budget'!H70 -> 0 | I51: ='Internal budget'!I70 -> 0 | J51: ='Internal budget'!J70 -> 0 | K51: ='Internal budget'!K70 -> 0 | L51: ='Internal budget'!L70 -> 0 | M51: 0
B52: 9 | C52: Tuition - Business & STB | H52: ='Internal budget'!H71 -> 0 | I52: ='Internal budget'!I71 -> 0 | J52: ='Internal budget'!J71 -> 0 | K52: ='Internal budget'!K71 -> 0 | L52: ='Internal budget'!L71 -> 0 | M52: =SUM(H52:L52) -> 0
C53: Other | H53: ='Internal budget'!H72*(1+'Internal budget'!$D$82) -> 0 | I53: ='Internal budget'!I72*(1+'Internal budget'!$D$82) -> 0 | J53: ='Internal budget'!J72*(1+'Internal budget'!$D$82) -> 0 | K53: ='Internal budget'!K72*(1+'Internal budget'!$D$82) -> 0 | L53: ='Internal budget'!L72*(1+'Internal budget'!$D$82) -> 0
B54: 9 | C54: Other | H54: ='Internal budget'!H73*(1+'Internal budget'!$D$82) -> 0 | I54: ='Internal budget'!I73*(1+'Internal budget'!$D$82) -> 0 | J54: ='Internal budget'!J73*(1+'Internal budget'!$D$82) -> 0 | K54: ='Internal budget'!K73*(1+'Internal budget'!$D$82) -> 0 | L54: ='Internal budget'!L73*(1+'Internal budget'!$D$82) -> 0 | M54: 0
B55: 10 | C55: Other | H55: ='Internal budget'!H74*(1+'Internal budget'!$D$82) -> 0 | I55: ='Internal budget'!I74*(1+'Internal budget'!$D$82) -> 0 | J55: ='Internal budget'!J74*(1+'Internal budget'!$D$82) -> 0 | K55: ='Internal budget'!K74*(1+'Internal budget'!$D$82) -> 0 | L55: ='Internal budget'!L74*(1+'Internal budget'!$D$82) -> 0 | M55: 0
A57: I | C57: Total Project Costs | H57: =H33+H35+H39+H43 -> 0 | I57: =I33+I35+I39+I43 -> 0 | J57: =J33+J35+J39+J43 -> 0 | K57: =K33+K35+K39+K43 -> 0 | L57: =L33+L35+L39+L43 -> 0 | M57: =SUM(H57:L57) -> 0

Sheet Tuition
C1: Tuition Costs | K1: Year 1 | M1: Year 2 | O1: Year 3 | Q1: Year 4 | S1: Year 5
C2: Note: semester can be changed by selecting a different year in the drop down
K3: Funds Requested | M3: Funds Requested | O3: Funds Requested | Q3: Funds Requested | S3: Funds Requested
A6: 8 | C6: Graduate Student Tuition (most Majors) | G6: select 1/4-time/1/2-time > > | I6: 1/2-time | K6: =ROUND(IF($I$6="1/2-time",K7,K8),0) -> 0 | M6: =ROUND(IF($I$6="1/2-time",M7,M8),0) -> 0 | O6: =ROUND(IF($I$6="1/2-time",O7,O8),0) -> 0 | Q6: =ROUND(IF($I$6="1/2-time",Q7,Q8),0) -> 0 | S6: =ROUND(IF($I$6="1/2-time",S7,S8),0) -> 0
A7: 8 | C7: Graduate Student Tuition | I7: Maximum | K7: =+C13*VLOOKUP(K13,$I$73:$Q$99,5,FALSE)+C15*VLOOKUP(K15,$I$73:$Q$99,5,FALSE)+C17*VLOOKUP(K17,$I$73:$Q$99,5,FALSE)+C19*VLOOKUP(K19,$I$73:$Q$99,9,FALSE)+C21*VLOOKUP(K21,$I$73:$Q$99,9,FALSE)+C23*VLOOKUP(K23,$I$73:$Q$99,9,FALSE) -> 0 | M7: =+E13*VLOOKUP(M13,$I$73:$Q$99,5,FALSE)+E15*VLOOKUP(M15,$I$73:$Q$99,5,FALSE)+E17*VLOOKUP(M17,$I$73:$Q$99,5,FALSE)+E19*VLOOKUP(M19,$I$73:$Q$99,9,FALSE)+E21*VLOOKUP(M21,$I$73:$Q$99,9,FALSE)+E23*VLOOKUP(M23,$I$73:$Q$99,9,FALSE) -> 0 | O7: =+F13*VLOOKUP(O13,$I$73:$Q$99,5,FALSE)+F15*VLOOKUP(O15,$I$73:$Q$99,5,FALSE)+F17*VLOOKUP(O17,$I$73:$Q$99,5,FALSE)+F19*VLOOKUP(O19,$I$73:$Q$99,9,FALSE)+F21*VLOOKUP(O21,$I$73:$Q$99,9,FALSE)+F23*VLOOKUP(O23,$I$73:$Q$99,9,FALSE) -> 0 | Q7: =+G13*VLOOKUP(Q13,$I$73:$Q$99,5,FALSE)+G15*VLOOKUP(Q15,$I$73:$Q$99,5,FALSE)+G17*VLOOKUP(Q17,$I$73:$Q$99,5,FALSE)+G19*VLOOKUP(Q19,$I$73:$Q$99,9,FALSE)+G21*VLOOKUP(Q21,$I$73:$Q$99,9,FALSE)+G23*VLOOKUP(Q23,$I$73:$Q$99,9,FALSE) -> 0 | S7: =+H13*VLOOKUP(S13,$I$73:$Q$99,5,FALSE)+H15*VLOOKUP(S15,$I$73:$Q$99,5,FALSE)+H17*VLOOKUP(S17,$I$73:$Q$99,5,FALSE)+H19*VLOOKUP(S19,$I$73:$Q$99,9,FALSE)+H21*VLOOKUP(S21,$I$73:$Q$99,9,FALSE)+H23*VLOOKUP(S23,$I$73:$Q$99,9,FALSE) -> 0
A8: 8 | C8: Graduate Student Tuition | I8: Minimum | K8: =+C13*VLOOKUP(K13,$I$73:$Q$99,3,FALSE)+C15*VLOOKUP(K15,$I$73:$Q$99,3,FALSE)+C17*VLOOKUP(K17,$I$73:$Q$99,3,FALSE)+C19*VLOOKUP(K19,$I$73:$Q$99,7,FALSE)+C21*VLOOKUP(K21,$I$73:$Q$99,7,FALSE)+C23*VLOOKUP(K23,$I$73:$Q$99,7,FALSE) -> 0 | M8: =+E13*VLOOKUP(M13,$I$73:$Q$99,3,FALSE)+E15*VLOOKUP(M15,$I$73:$Q$99,3,FALSE)+E17*VLOOKUP(M17,$I$73:$Q$99,3,FALSE)+E19*VLOOKUP(M19,$I$73:$Q$99,7,FALSE)+E21*VLOOKUP(M21,$I$73:$Q$99,7,FALSE)+E23*VLOOKUP(M23,$I$73:$Q$99,7,FALSE) -> 0 | O8: =+G13*VLOOKUP(O13,$I$73:$Q$99,3,FALSE)+G15*VLOOKUP(O15,$I$73:$Q$99,3,FALSE)+G17*VLOOKUP(O17,$I$73:$Q$99,3,FALSE)+G19*VLOOKUP(O19,$I$73:$Q$99,7,FALSE)+G21*VLOOKUP(O21,$I$73:$Q$99,7,FALSE)+G23*VLOOKUP(O23,$I$73:$Q$99,7,FALSE) -> 0 | Q8: =+G13*VLOOKUP(Q13,$I$73:$Q$99,3,FALSE)+G15*VLOOKUP(Q15,$I$73:$Q$99,3,FALSE)+G17*VLOOKUP(Q17,$I$73:$Q$99,3,FALSE)+G19*VLOOKUP(Q19,$I$73:$Q$99,7,FALSE)+G21*VLOOKUP(Q21,$I$73:$Q$99,7,FALSE)+G23*VLOOKUP(Q23,$I$73:$Q$99,7,FALSE) -> 0 | S8: =+H13*VLOOKUP(S13,$I$73:$Q$99,3,FALSE)+H15*VLOOKUP(S15,$I$73:$Q$99,3,FALSE)+H17*VLOOKUP(S17,$I$73:$Q$99,3,FALSE)+H19*VLOOKUP(S19,$I$73:$Q$99,7,FALSE)+H21*VLOOKUP(S21,$I$73:$Q$99,7,FALSE)+H23*VLOOKUP(S23,$I$73:$Q$99,7,FALSE) -> 0
C11: Graduate Student Tuition (most majors)
C12: Year 1 | E12: Year 2 | F12: Year 3 | G12: Year 4 | H12: Year 5
A13: Masters Students (enter no. of students per term) | C13: 0 | E13: 0 | F13: 0 | G13: 0 | H13: 0 | I13: Summer | K13: Summer 2016 | M13: Summer 2017 | O13: Summer 2018 | Q13: Summer 2019 | S13: Summer 2020
C15: 0 | E15: 0 | F15: 0 | G15: 0 | H15: 0 | I15: Fall | K15: Fall 2016 | M15: Fall 2017 | O15: Fall 2018 | Q15: Fall 2019 | S15: Fall 2020
C17: 0 | E17: 0 | F17: 0 | G17: 0 | H17: 0 | I17: Spring | K17: Spring 2017 | M17: Spring 2018 | O17: Spring 2019 | Q17: Spring 2020 | S17: Spring 2021
A19: PhD Students (enter no. of students per term) | C19: 0 | E19: 0 | F19: 0 | G19: 0 | H19: 0 | I19: Summer | K19: Summer 2016 | M19: Summer 2017 | O19: Summer 2018 | Q19: Summer 2019 | S19: Summer 2020
I21: Fall | K21: Fall 2016 | M21: Fall 2017 | O21: Fall 2018 | Q21: Fall 2019 | S21: Fall 2020
C23: 0 | E23: 0 | F23: 0 | G23: 0 | H23: 0 | I23: Spring | K23: Spring 2017 | M23: Spring 2018 | O23: Spring 2019 | Q23: Spring 2020 | S23: Spring 2021
A26: 8 | C26: Graduate Student Tuition (Engineering & Architecture) | G26: select 1/4-time/1/2-time > > | I26: 1/2-time | K26: =ROUND(IF($I$26="1/2-TIME",K27,K28),0) -> 0 | M26: =ROUND(IF($I$26="1/2-TIME",M27,M28),0) -> 0 | O26: =ROUND(IF($I$26="1/2-TIME",O27,O28),0) -> 0 | Q26: =ROUND(IF($I$26="1/2-TIME",Q27,Q28),0) -> 0 | S26: =ROUND(IF($I$26="1/2-TIME",S27,S28),0) -> 0
A27: 8 | C27: Graduate Student Tuition | I27: Maximum | K27: =+C33*VLOOKUP(K33,$I$103:$Q$129,5,FALSE)+C35*VLOOKUP(K35,$I$103:$Q$129,5,FALSE)+C37*VLOOKUP(K37,$I$103:$Q$129,5,FALSE)+C39*VLOOKUP(K39,$I$103:$Q$129,9,FALSE)+C41*VLOOKUP(K41,$I$103:$Q$129,9,FALSE)+C43*VLOOKUP(K43,$I$103:$Q$129,9,FALSE) -> 0 | M27: =+E33*VLOOKUP(M33,$I$103:$Q$129,5,FALSE)+E35*VLOOKUP(M35,$I$103:$Q$129,5,FALSE)+E37*VLOOKUP(M37,$I$103:$Q$129,5,FALSE)+E39*VLOOKUP(M39,$I$103:$Q$129,9,FALSE)+E41*VLOOKUP(M41,$I$103:$Q$129,9,FALSE)+E43*VLOOKUP(M43,$I$103:$Q$129,9,FALSE) -> 0 | O27: =+G33*VLOOKUP(O33,$I$103:$Q$129,5,FALSE)+G35*VLOOKUP(O35,$I$103:$Q$129,5,FALSE)+G37*VLOOKUP(O37,$I$103:$Q$129,5,FALSE)+G39*VLOOKUP(O39,$I$103:$Q$129,9,FALSE)+G41*VLOOKUP(O41,$I$103:$Q$129,9,FALSE)+G43*VLOOKUP(O43,$I$103:$Q$129,9,FALSE) -> 0 | Q27: =+G33*VLOOKUP(Q33,$I$103:$Q$129,5,FALSE)+G35*VLOOKUP(Q35,$I$103:$Q$129,5,FALSE)+G37*VLOOKUP(Q37,$I$103:$Q$129,5,FALSE)+G39*VLOOKUP(Q39,$I$103:$Q$129,9,FALSE)+G41*VLOOKUP(Q41,$I$103:$Q$129,9,FALSE)+G43*VLOOKUP(Q43,$I$103:$Q$129,9,FALSE) -> 0 | S27: =+H33*VLOOKUP(S33,$I$103:$Q$129,5,FALSE)+H35*VLOOKUP(S35,$I$103:$Q$129,5,FALSE)+H37*VLOOKUP(S37,$I$103:$Q$129,5,FALSE)+H39*VLOOKUP(S39,$I$103:$Q$129,9,FALSE)+H41*VLOOKUP(S41,$I$103:$Q$129,9,FALSE)+H43*VLOOKUP(S43,$I$103:$Q$129,9,FALSE) -> 0
A28: 8 | C28: Graduate Student Tuition | I28: Minimum | K28: =+C33*VLOOKUP(K33,$I$103:$Q$129,3,FALSE)+C35*VLOOKUP(K35,$I$103:$Q$129,3,FALSE)+C37*VLOOKUP(K37,$I$103:$Q$129,3,FALSE)+C39*VLOOKUP(K39,$I$103:$Q$129,7,FALSE)+C41*VLOOKUP(K41,$I$103:$Q$129,7,FALSE)+C43*VLOOKUP(K43,$I$103:$Q$129,7,FALSE) -> 0 | M28: =+E33*VLOOKUP(M33,$I$103:$Q$129,3,FALSE)+E35*VLOOKUP(M35,$I$103:$Q$129,3,FALSE)+E37*VLOOKUP(M37,$I$103:$Q$129,3,FALSE)+E39*VLOOKUP(M39,$I$103:$Q$129,7,FALSE)+E41*VLOOKUP(M41,$I$103:$Q$129,7,FALSE)+E43*VLOOKUP(M43,$I$103:$Q$129,7,FALSE) -> 0 | O28: =+G33*VLOOKUP(O33,$I$103:$Q$129,3,FALSE)+G35*VLOOKUP(O35,$I$103:$Q$129,3,FALSE)+G37*VLOOKUP(O37,$I$103:$Q$129,3,FALSE)+G39*VLOOKUP(O39,$I$103:$Q$129,7,FALSE)+G41*VLOOKUP(O41,$I$103:$Q$129,7,FALSE)+G43*VLOOKUP(O43,$I$103:$Q$129,7,FALSE) -> 0 | Q28: =+G33*VLOOKUP(Q33,$I$103:$Q$129,3,FALSE)+G35*VLOOKUP(Q35,$I$103:$Q$129,3,FALSE)+G37*VLOOKUP(Q37,$I$103:$Q$129,3,FALSE)+G39*VLOOKUP(Q39,$I$103:$Q$129,7,FALSE)+G41*VLOOKUP(Q41,$I$103:$Q$129,7,FALSE)+G43*VLOOKUP(Q43,$I$103:$Q$129,7,FALSE) -> 0 | S28: =+H33*VLOOKUP(S33,$I$103:$Q$129,3,FALSE)+H35*VLOOKUP(S35,$I$103:$Q$129,3,FALSE)+H37*VLOOKUP(S37,$I$103:$Q$129,3,FALSE)+H39*VLOOKUP(S39,$I$103:$Q$129,7,FALSE)+H41*VLOOKUP(S41,$I$103:$Q$129,7,FALSE)+H43*VLOOKUP(S43,$I$103:$Q$129,7,FALSE) -> 0
C31: Engineering & Architecture Students Only
C32: Year 1 | E32: Year 2 | F32: Year 3 | G32: Year 4 | H32: Year 5
A33: Masters Students (enter no. of students per term) | C33: 0 | E33: 0 | F33: 0 | G33: 0 | H33: 0 | I33: Summer | K33: Summer 2016 | M33: Summer 2017 | O33: Summer 2018 | Q33: Summer 2019 | S33: Summer 2020
C35: 0 | E35: 0 | F35: 0 | G35: 0 | H35: 0 | I35: Fall | K35: Fall 2016 | M35: Fall 2017 | O35: Fall 2018 | Q35: Fall 2019 | S35: Fall 2020
C37: 0 | E37: 0 | F37: 0 | G37: 0 | H37: 0 | I37: Spring | K37: Spring 2017 | M37: Spring 2018 | O37: Spring 2019 | Q37: Spring 2020 | S37: Spring 2021
C38: Year 1 | E38: Year 2 | F38: Year 3 | G38: Year 4 | H38: Year 5
A39: PhD Students (enter no. of students per term) | C39: 0 | E39: 0 | F39: 0 | G39: 0 | H39: 0 | I39: Summer | K39: Summer 2016 | M39: Summer 2017 | O39: Summer 2018 | Q39: Summer 2019 | S39: Summer 2020
C41: 0 | E41: 0 | F41: 0 | G41: 0 | H41: 0 | I41: Fall | K41: Fall 2016 | M41: Fall 2017 | O41: Fall 2018 | Q41: Fall 2019 | S41: Fall 2020
C43: 0 | E43: 0 | F43: 0 | G43: 0 | I43: Spring | K43: Spring 2017 | M43: Spring 2018 | O43: Spring 2019 | Q43: Spring 2020 | S43: Spring 2021
D44: 0
A46: 8 | C46: Graduate Student Tuition (Business & STB) | G46: select 1/4-time/1/2-time > > | I46: 1/2-time | K46: =ROUND(IF($I$46="1/2-TIME",K47,K48),0) -> 0 | M46: =ROUND(IF($I$46="1/2-TIME",M47,M48),0) -> 0 | O46: =ROUND(IF($I$46="1/2-TIME",O47,O48),0) -> 0 | Q46: =ROUND(IF($I$46="1/2-TIME",Q47,Q48),0) -> 0 | S46: =ROUND(IF($I$46="1/2-TIME",S47,S48),0) -> 0
A47: 8 | C47: Graduate Student Tuition | I47: Maximum | K47: =+C53*VLOOKUP(K53,$I$133:$Q$158,5,FALSE)+C55*VLOOKUP(K55,$I$133:$Q$158,5,FALSE)+C57*VLOOKUP(K57,$I$133:$Q$158,5,FALSE)+C59*VLOOKUP(K59,$I$133:$Q$158,9,FALSE)+C61*VLOOKUP(K61,$I$133:$Q$158,9,FALSE)+C63*VLOOKUP(K63,$I$133:$Q$158,9,FALSE) -> 0 | M47: =+E53*VLOOKUP(M53,$I$133:$Q$158,5,FALSE)+E55*VLOOKUP(M55,$I$133:$Q$158,5,FALSE)+E57*VLOOKUP(M57,$I$133:$Q$158,5,FALSE)+E59*VLOOKUP(M59,$I$133:$Q$158,9,FALSE)+E61*VLOOKUP(M61,$I$133:$Q$158,9,FALSE)+E63*VLOOKUP(M63,$I$133:$Q$158,9,FALSE) -> 0 | O47: =+G53*VLOOKUP(O53,$I$133:$Q$158,5,FALSE)+G55*VLOOKUP(O55,$I$133:$Q$158,5,FALSE)+G57*VLOOKUP(O57,$I$133:$Q$158,5,FALSE)+G59*VLOOKUP(O59,$I$133:$Q$158,9,FALSE)+G61*VLOOKUP(O61,$I$133:$Q$158,9,FALSE)+G63*VLOOKUP(O63,$I$133:$Q$158,9,FALSE) -> 0 | Q47: =+G53*VLOOKUP(Q53,$I$133:$Q$158,5,FALSE)+G55*VLOOKUP(Q55,$I$133:$Q$158,5,FALSE)+G57*VLOOKUP(Q57,$I$133:$Q$158,5,FALSE)+G59*VLOOKUP(Q59,$I$133:$Q$158,9,FALSE)+G61*VLOOKUP(Q61,$I$133:$Q$158,9,FALSE)+G63*VLOOKUP(Q63,$I$133:$Q$158,9,FALSE) -> 0 | S47: =+H53*VLOOKUP(S53,$I$133:$Q$158,5,FALSE)+H55*VLOOKUP(S55,$I$133:$Q$158,5,FALSE)+H57*VLOOKUP(S57,$I$133:$Q$158,5,FALSE)+H59*VLOOKUP(S59,$I$133:$Q$158,9,FALSE)+H61*VLOOKUP(S61,$I$133:$Q$158,9,FALSE)+H63*VLOOKUP(S63,$I$133:$Q$158,9,FALSE) -> 0
A48: 8 | C48: Graduate Student Tuition | I48: Minimum | K48: =+C53*VLOOKUP(K53,$I$133:$Q$158,3,FALSE)+C55*VLOOKUP(K55,$I$133:$Q$158,3,FALSE)+C57*VLOOKUP(K57,$I$133:$Q$158,3,FALSE)+C59*VLOOKUP(K59,$I$133:$Q$158,7,FALSE)+C61*VLOOKUP(K61,$I$133:$Q$158,7,FALSE)+C63*VLOOKUP(K63,$I$133:$Q$158,7,FALSE) -> 0 | M48: =+E53*VLOOKUP(M53,$I$133:$Q$158,3,FALSE)+E55*VLOOKUP(M55,$I$133:$Q$158,3,FALSE)+E57*VLOOKUP(M57,$I$133:$Q$158,3,FALSE)+E59*VLOOKUP(M59,$I$133:$Q$158,7,FALSE)+E61*VLOOKUP(M61,$I$133:$Q$158,7,FALSE)+E63*VLOOKUP(M63,$I$133:$Q$158,7,FALSE) -> 0 | O48: =+G53*VLOOKUP(O53,$I$133:$Q$158,3,FALSE)+G55*VLOOKUP(O55,$I$133:$Q$158,3,FALSE)+G57*VLOOKUP(O57,$I$133:$Q$158,3,FALSE)+G59*VLOOKUP(O59,$I$133:$Q$158,7,FALSE)+G61*VLOOKUP(O61,$I$133:$Q$158,7,FALSE)+G63*VLOOKUP(O63,$I$133:$Q$158,7,FALSE) -> 0 | Q48: =+G53*VLOOKUP(Q53,$I$133:$Q$158,3,FALSE)+G55*VLOOKUP(Q55,$I$133:$Q$158,3,FALSE)+G57*VLOOKUP(Q57,$I$133:$Q$158,3,FALSE)+G59*VLOOKUP(Q59,$I$133:$Q$158,7,FALSE)+G61*VLOOKUP(Q61,$I$133:$Q$158,7,FALSE)+G63*VLOOKUP(Q63,$I$133:$Q$158,7,FALSE) -> 0 | S48: =+H53*VLOOKUP(S53,$I$133:$Q$158,3,FALSE)+H55*VLOOKUP(S55,$I$133:$Q$158,3,FALSE)+H57*VLOOKUP(S57,$I$133:$Q$158,3,FALSE)+H59*VLOOKUP(S59,$I$133:$Q$158,7,FALSE)+H61*VLOOKUP(S61,$I$133:$Q$158,7,FALSE)+H63*VLOOKUP(S63,$I$133:$Q$158,7,FALSE) -> 0
C51: Business and STB Students Only
C52: Year 1 | E52: Year 2 | F52: Year 3 | G52: Year 4 | H52: Year 5
A53: Masters Students (enter no. of students per term) | C53: 0 | E53: 0 | F53: 0 | G53: 0 | H53: 0 | I53: Summer | K53: Summer 2016 | M53: Summer 2017 | O53: Summer 2018 | Q53: Summer 2019 | S53: Summer 2020
C55: 0 | E55: 0 | F55: 0 | G55: 0 | H55: 0 | I55: Fall | K55: Fall 2016 | M55: Fall 2017 | O55: Fall 2018 | Q55: Fall 2019 | S55: Fall 2020
E56: 0 | F56: 0 | G56: 0 | H56: 0
C57: 0 | E57: 0 | F57: 0 | G57: 0 | H57: 0 | I57: Spring | K57: Spring 2017 | M57: Spring 2018 | O57: Spring 2019 | Q57: Spring 2020 | S57: Spring 2021
C58: Year 1 | E58: Year 2 | F58: Year 3 | G58: Year 4 | H58: Year 5
A59: PhD Students (enter no. of students per term) | C59: 0 | E59: 0 | F59: 0 | G59: 0 | H59: 0 | I59: Summer | K59: Summer 2016 | M59: Summer 2017 | O59: Summer 2018 | Q59: Summer 2019 | S59: Summer 2020
C61: 0 | E61: 0 | F61: 0 | G61: 0 | H61: 0 | I61: Fall | K61: Fall 2016 | M61: Fall 2017 | O61: Fall 2018 | Q61: Fall 2019 | S61: Fall 2020
C63: 0 | E63: 0 | F63: 0 | G63: 0 | H63: 0 | I63: Spring | K63: Spring 2017 | M63: Spring 2018 | O63: Spring 2019 | Q63: Spring 2020 | S63: Spring 2021
K69: Masters - Min | M69: Masters-Max | O69: PhD - Min | Q69: PhD - Max | S69: esc. Rate
S70: 1.042
S71: 1/4-time
S72: 1/2-time
I73: Fall 2016 | K73: =Q73/4 -> 1046.75 | M73: =O73 -> 2093.5 | O73: =Q73/2 -> 2093.5 | Q73: 4187
I74: Fall 2017 | K74: =K73*$S$70 -> 1090.7135 | L74: =L73*$S$70 -> 0 | M74: 2181.427 | N74: 0 | O74: 2181.427 | P74: 0 | Q74: 4362.854
I75: Fall 2018 | K75: =K74*$S$70 -> 1136.523467 | M75: 2273.046934 | O75: 2273.046934 | Q75: 4546.093868
I76: Fall 2019 | K76: 1184.257453 | M76: 2368.514905 | O76: 2368.514905 | Q76: 4737.02981
I77: Fall 2020 | K77: 1233.996266 | M77: 2467.992531 | O77: 2467.992531 | Q77: 4935.985062
I78: Fall 2021 | K78: 1285.824109 | M78: 2571.648218 | O78: 2571.648218 | Q78: 5143.296435
I79: Fall 2022 | K79: 1339.828721 | M79: 2679.657443 | O79: 2679.657443 | Q79: 5359.314885
I80: Fall 2023 | K80: 1396.101528 | M80: 2792.203055 | O80: 2792.203055 | Q80: 5584.406111
I82: Spring 2017 | K82: =Q82/4 -> 1046.75 | M82: =Q82/2 -> 2093.5 | O82: =Q82/2 -> 2093.5 | Q82: =Q73 -> 4187
I83: Spring 2018 | K83: =K82*$S$70 -> 1090.7135 | M83: =M82*$S$70 -> 2181.427 | O83: =O82*$S$70 -> 2181.427 | Q83: =Q82*$S$70 -> 4362.854
I84: Spring 2019 | K84: =K83*$S$70 -> 1136.523467 | M84: =M83*$S$70 -> 2273.046934 | O84: =O83*$S$70 -> 2273.046934 | Q84: =Q83*$S$70 -> 4546.093868
I85: Spring 2020 | K85: 1184.257453 | M85: 2368.514905 | O85: 2368.514905 | Q85: 4737.02981
I86: Spring 2021 | K86: 1233.996266 | M86: 2467.992531 | O86: 2467.992531 | Q86: 4935.985062
I87: Spring 2022 | K87: 1285.824109 | M87: 2571.648218 | O87: 2571.648218 | Q87: 5143.296435
I88: Spring 2023 | K88: 1339.828721 | M88: 2679.657443 | O88: 2679.657443 | Q88: 5359.314885
I89: Spring 2024 | K89: 1396.101528 | M89: 2792.203055 | O89: 2792.203055 | Q89: 5584.406111
I91: Summer 2016 | K91: =Q91/4 -> 655.5 | M91: =Q91/2 -> 1311 | O91: =Q91/2 -> 1311 | Q91: 2622
I92: Summer 2017 | K92: =K91*$S$70 -> 683.031 | M92: =M91*$S$70 -> 1366.062 | O92: =O91*$S$70 -> 1366.062 | Q92: 2330
I93: Summer 2018 | K93: =K92*$S$70 -> 711.718302 | M93: =M92*$S$70 -> 1423.436604 | O93: =O92*$S$70 -> 1423.436604 | Q93: =Q92*$S$70 -> 2427.86
I94: Summer 2019 | K94: 741.6104707 | M94: 1483.220941 | O94: 1483.220941 | Q94: 2529.83012
I95: Summer 2020 | K95: 772.7581105 | M95: 1545.516221 | O95: 1545.516221 | Q95: 2636.082985
I96: Summer 2021 | K96: 805.2139511 | M96: 1610.427902 | O96: 1610.427902 | Q96: 2746.79847
I97: Summer 2022 | K97: 839.032937 | M97: 1678.065874 | O97: 1678.065874 | Q97: 2862.164006
I98: Summer 2023 | K98: 874.2723204 | M98: 1748.544641 | O98: 1748.544641 | Q98: 2982.374894
I100: Engineering & Architecture students
K101: Masters - Min | M101: Masters-Max | O101: PhD - Min | Q101: PhD - Max
I103: Fall 2016 | K103: =Q103/4 -> 1206.75 | M103: =O103 -> 2413.5 | O103: =Q103/2 -> 2413.5 | Q103: 4827
I104: Fall 2017 | K104: =K103*$S$70 -> 1257.4335 | M104: =M103*$S$70 -> 2514.867 | O104: =O103*$S$70 -> 2514.867 | Q104: =Q103*$S$70 -> 5029.734
I105: Fall 2018 | K105: =K104*$S$70 -> 1310.245707 | M105: =M104*$S$70 -> 2620.491414 | O105: =O104*$S$70 -> 2620.491414 | Q105: =Q104*$S$70 -> 5240.982828
I106: Fall 2019 | K106: 1365.276027 | M106: 2730.552053 | O106: 2730.552053 | Q106: 5461.104107
I107: Fall 2020 | K107: 1422.61762 | M107: 2845.23524 | O107: 2845.23524 | Q107: 5690.470479
I108: Fall 2021 | K108: 1482.36756 | M108: 2964.73512 | O108: 2964.73512 | Q108: 5929.470239
I109: Fall 2022 | K109: 1544.626997 | M109: 3089.253995 | O109: 3089.253995 | Q109: 6178.507989
I110: Fall 2023 | K110: 1609.501331 | M110: 3219.002663 | O110: 3219.002663 | Q110: 6438.005325
K111: 0 | O111: 0
I112: Spring 2017 | K112: =Q112/4 -> 1206.75 | M112: =O112 -> 2413.5 | O112: =Q112/2 -> 2413.5 | Q112: 4827
I113: Spring 2018 | K113: =K112*$S$70 -> 1257.4335 | M113: =M112*$S$70 -> 2514.867 | O113: =O112*$S$70 -> 2514.867 | Q113: =Q112*$S$70 -> 5029.734
I114: Spring 2019 | K114: =K113*$S$70 -> 1310.245707 | M114: =M113*$S$70 -> 2620.491414 | O114: =O113*$S$70 -> 2620.491414 | Q114: =Q113*$S$70 -> 5240.982828
I115: Spring 2020 | K115: 1365.276027 | M115: 2730.552053 | O115: 2730.552053 | Q115: 5461.104107
I116: Spring 2021 | K116: 1422.61762 | M116: 2845.23524 | O116: 2845.23524 | Q116: 5690.470479
I117: Spring 2022 | K117: 1482.36756 | M117: 2964.73512 | O117: 2964.73512 | Q117: 5929.470239
I118: Spring 2023 | K118: 1544.626997 | M118: 3089.253995 | O118: 3089.253995 | Q118: 6178.507989
I119: Spring 2024 | K119: 1609.501331 | M119: 3219.002663 | O119: 3219.002663 | Q119: 6438.005325
K120: 0 | O120: 0
I121: Summer 2016 | K121: =Q121/4 -> 744.25 | M121: =Q121/2 -> 1488.5 | O121: =Q121/2 -> 1488.5 | Q121: 2977
I122: Summer 2017 | K122: =K121*$S$70 -> 775.5085 | M122: =M121*$S$70 -> 1551.017 | O122: =O121*$S$70 -> 1551.017 | Q122: =Q121*$S$70 -> 3102.034
I123: Summer 2018 | K123: =K122*$S$70 -> 808.079857 | M123: =M122*$S$70 -> 1616.159714 | O123: =O122*$S$70 -> 1616.159714 | Q123: =Q122*$S$70 -> 3232.319428
I124: Summer 2019 | K124: 842.019211 | M124: 1684.038422 | O124: 1684.038422 | Q124: 3368.076844
I125: Summer 2020 | K125: 877.3840179 | M125: 1754.768036 | O125: 1754.768036 | Q125: 3509.536071
I126: Summer 2021 | K126: 914.2341466 | M126: 1828.468293 | O126: 1828.468293 | Q126: 3656.936586
I127: Summer 2022 | K127: 952.6319808 | M127: 1905.263962 | O127: 1905.263962 | Q127: 3810.527923
I128: Summer 2023 | K128: 992.642524 | M128: 1985.285048 | O128: 1985.285048 | Q128: 3970.570096
I130: Business & STB
K131: Masters - Min | M131: Masters-Max | O131: PhD - Min | Q131: PhD - Max
I133: Fall 2016 | K133: =Q133/4 -> 1270.75 | M133: =Q133/2 -> 2541.5 | O133: =Q133/2 -> 2541.5 | Q133: 5083
I134: Fall 2017 | K134: =K133*$S$70 -> 1324.1215 | M134: =M133*$S$70 -> 2648.243 | O134: =O133*$S$70 -> 2648.243 | Q134: =Q133*$S$70 -> 5296.486
I135: Fall 2018 | K135: =K134*$S$70 -> 1379.734603 | M135: =M134*$S$70 -> 2759.469206 | O135: =O134*$S$70 -> 2759.469206 | Q135: =Q134*$S$70 -> 5518.938412
I136: Fall 2019 | K136: 1437.683456 | M136: 2875.366913 | O136: 2875.366913 | Q136: 5750.733825
I137: Fall 2020 | K137: 1498.066161 | M137: 2996.132323 | O137: 2996.132323 | Q137: 5992.264646
I138: Fall 2021 | K138: 1560.98494 | M138: 3121.969881 | O138: 3121.969881 | Q138: 6243.939761
I139: Fall 2022 | K139: 1626.546308 | M139: 3253.092616 | O139: 3253.092616 | Q139: 6506.185231
I140: Fall 2023 | K140: 1694.861253 | M140: 3389.722505 | O140: 3389.722505 | Q140: 6779.445011
K141: 0 | O141: 0
I142: Spring 2017 | K142: =Q142/4 -> 1270.75 | M142: =Q142/2 -> 2541.5 | O142: =Q142/2 -> 2541.5 | Q142: 5083
I143: Spring 2018 | K143: =K142*$S$70 -> 1324.1215 | M143: =M142*$S$70 -> 2648.243 | O143: =O142*$S$70 -> 2648.243 | Q143: =Q142*$S$70 -> 5296.486
I144: Spring 2019 | K144: =K143*$S$70 -> 1379.734603 | M144: =M143*$S$70 -> 2759.469206 | O144: =O143*$S$70 -> 2759.469206 | Q144: =Q143*$S$70 -> 5518.938412
I145: Spring 2020 | K145: 1437.683456 | M145: 2875.366913 | O145: 2875.366913 | Q145: 5750.733825
I146: Spring 2021 | K146: 1498.066161 | M146: 2996.132323 | O146: 2996.132323 | Q146: 5992.264646
I147: Spring 2022 | K147: 1560.98494 | M147: 3121.969881 | O147: 3121.969881 | Q147: 6243.939761
I148: Spring 2023 | K148: 1626.546308 | M148: 3253.092616 | O148: 3253.092616 | Q148: 6506.185231
I149: Spring 2024 | K149: 1694.861253 | M149: 3389.722505 | O149: 3389.722505 | Q149: 6779.445011
K150: 0 | O150: 0
I151: Summer 2016 | K151: =Q151/4 -> 783 | M151: =Q151/2 -> 1566 | O151: =Q151/2 -> 1566 | Q151: 3132
I152: Summer 2017 | K152: =K151*$S$70 -> 815.886 | M152: =M151*$S$70 -> 1631.772 | O152: =O151*$S$70 -> 1631.772 | Q152: =Q151*$S$70 -> 3263.544
I153: Summer 2018 | K153: =K152*$S$70 -> 850.153212 | M153: =M152*$S$70 -> 1700.306424 | O153: =O152*$S$70 -> 1700.306424 | Q153: =Q152*$S$70 -> 3400.612848
I154: Summer 2019 | K154: 885.8596469 | M154: 1771.719294 | O154: 1771.719294 | Q154: 3543.438588
I155: Summer 2020 | K155: 923.0657521 | M155: 1846.131504 | O155: 1846.131504 | Q155: 3692.263008
I156: Summer 2021 | K156: 961.8345137 | M156: 1923.669027 | O156: 1923.669027 | Q156: 3847.338055
I157: Summer 2022 | K157: 1002.231563 | M157: 2004.463126 | O157: 2004.463126 | Q157: 4008.926253
I158: Summer 2023 | K158: 1044.325289 | M158: 2088.650578 | O158: 2088.650578 | Q158: 4177.301156

Sheet FOR SPA USE ONLY
A1: Sponsor: | B1: ='Internal budget'!D3 -> .
A2: Title: | B2: ='Internal budget'!D4 -> .
A3: PI Name: | B3: ='Internal budget'!D5 -> .
A4: Period of Performance: | B4: ='Internal budget'!D6 -> .
A5: Account Number:
A7: Budget Categories | B7: Budget Code | C7: Amount
A8: Salary/Hourly | B8: 0108 | C8: =ROUND('Internal budget'!M31,0) -> 0
A9: Payroll Benefits | B9: 0130 | C9: =ROUND('Internal budget'!M33,0) -> 0
A10: Equipment | B10: 0710 | C10: =ROUND('Internal budget'!M52,0) -> 0
A11: Travel Domestic | B11: 0215 | C11: =ROUND('Internal budget'!M57,0) -> 0
A12: Travel Foreign | B12: 0216 | C12: =ROUND('Internal budget'!M58,0) -> 0
A13: Student Tuition | B13: 0610 | C13: =ROUND('Internal budget'!M69+'Internal budget'!M70,0) -> 0
A14: Supplies | B14: 0410 | C14: =ROUND('Internal budget'!M61,0) -> 0
A15: Subcontracts
A16: Subject to IDC | B16: 0396 | C16: =ROUND('Internal budget'!M65+'Internal budget'!M67,0) -> 0
A17: Not Subejct to IDC | B17: 0376 | C17: =ROUND('Internal budget'!M66+'Internal budget'!M68,0) -> 0
A18: Other Direct Costs
A19: Telecom Charges | B19: 0340 | C19: 0
A20: Computer Usage | B20: 0353 | C20: =ROUND('Internal budget'!M63,0) -> 0
A21: Printing/Copying | B21: 0373 | C21: =ROUND('Internal budget'!M62,0) -> 0
A22: Services/Honoraria | B22: 0302 | C22: =ROUND('Internal budget'!M64,0) -> 0
A23: Postage | B23: 0379 | C23: 0
A24: Other | B24: 0630 | C24: =ROUND(SUM('Internal budget'!M72:M74),0) -> 0
A25: Total Direct Costs | C25: ='Internal budget'!M76 -> 0
A26: Indirect Costs | B26: 0642 | C26: ='Internal budget'!M81 -> 0
A27: Total Costs | C27: =SUM(C25:C26) -> 0
